bitfinex-derivatives/quotes_ETHF0:USTF0_20210703
["timestamp","ask_amount","ask_price","bid_price","bid_amount"]
[1625328962241,1.30511366,2217.6,2217.3,5.63657]
[1625328962841,1.30511366,2217.6,2217.5,2.20527]
[1625328963042,3.51053636,2217.7,2217.5,2.20527]
[1625328964743,1.30526636,2217.7,2217.5,2.20527]
[1625328965344,1.30449241,2217.8,2217.5,2.20527]
[1625328966145,1.0,2217.7,2217.5,2.20527]
[1625328966698,2.30443036,2217.7,2217.5,2.20527]
[1625328966995,1.30443036,2217.7,2217.5,2.20527]
[1625328967748,1.30451322,2217.8,2217.5,2.20527]
[1625328968955,1.30498463,2218.0,2217.7,2.20527]
[1625328969459,1.30438717,2218.3,2217.7,2.20527]
[1625328970162,1.30388654,2218.5,2217.7,2.20527]
[1625328970462,1.0,2218.4,2217.7,2.20527]
[1625328970864,1.30331702,2218.4,2217.7,2.20527]
[1625328970964,1.30331702,2218.4,2218.3,4.41054]
[1625328971064,1.30331702,2218.4,2218.3,7.89414]
[1625328971266,1.30403651,2218.6,2218.3,7.89414]
[1625328971720,1.30298079,2218.5,2218.3,7.89414]
[1625328972668,2.30298079,2218.5,2218.3,7.89414]
[1625328972973,1.30298079,2218.5,2218.3,7.89414]
[1625328973178,2.30298079,2218.5,2218.3,7.89414]
[1625328974082,1.30298079,2218.5,2218.3,7.89414]
[1625328974839,2.40277258,2218.6,2218.3,7.89414]
[1625328976092,1.30218954,2218.5,2218.3,7.89414]
[1625328976743,1.3021191,2218.6,2218.3,7.89414]
[1625328977895,2.3021191,2218.6,2218.3,7.89414]
[1625328978498,1.0,2218.6,2218.3,7.89414]
[1625328978599,2.1,2218.6,2218.3,7.89414]
[1625328979049,1.30169103,2218.5,2218.3,7.89414]
[1625328979251,1.0,2218.4,2218.3,7.89414]
[1625328980302,2.82248752,2218.4,2218.3,6.82509747]
[1625328980815,2.82248752,2218.4,2218.3,4.61982747]
[1625328980913,2.82248752,2218.4,2218.3,1.13622747]
[1625328981064,7.23302752,2218.4,2218.3,1.13622747]
[1625328981465,8.33302752,2218.4,2218.3,1.13622747]
[1625328982017,9.11800309,2218.4,2218.3,1.13622747]
[1625328982115,9.11800309,2218.4,2217.9,2.20527]
[1625328982266,1.30386836,2218.1,2217.9,2.20527]
[1625328982366,1.0,2218.0,2217.9,2.20527]
[1625328983024,3.20527,2218.0,2217.9,2.20527]
[1625328984079,4.50742702,2218.0,2217.9,2.20527]
[1625328984930,5.60742702,2218.0,2217.9,2.20527]
[1625328986537,6.12987173,2218.0,2217.9,2.20527]
[1625328987033,6.12987173,2218.0,2216.9,14.9992]
[1625328987134,6.12987173,2218.0,2216.3,15.0085]
[1625328987238,1.30330296,2217.9,2216.3,15.0085]
[1625328987335,2.1,2217.8,2216.3,15.0085]
[1625328987737,3.4036939,2217.8,2216.3,15.0085]
[1625328989038,3.4036939,2217.8,2217.7,2.20527]
[1625328989590,2.1,2217.8,2217.7,2.20527]
[1625328989991,3.92782554,2217.8,2217.7,2.20527]
[1625328991094,3.92782554,2217.8,2217.7,7e-05]
[1625328991194,3.92782554,2217.8,2216.3,15.0085]
[1625328991396,7.39212554,2217.8,2216.3,15.0085]
[1625328991495,5.5643,2217.8,2216.3,15.0085]
[1625328991597,10.3233,2217.8,2216.3,15.0085]
[1625328991996,1.30547945,2217.3,2216.3,15.0085]
[1625328992145,1.0,2217.2,2216.3,15.0085]
[1625328992495,1.1,2217.1,2216.3,15.0085]
[1625328992594,1.0,2217.0,2216.3,15.0085]
[1625328992696,1.1,2216.9,2216.3,15.0085]
[1625328992846,1.0,2216.8,2216.3,15.0085]
[1625328992945,1.0,2216.8,2215.4,14.9448]
[1625328993094,1.0,2216.8,2216.7,2.20527]
[1625328994595,2.1,2216.8,2216.7,2.20527]
[1625328994999,1.0,2216.8,2216.7,2.20527]
[1625329001888,4.61108605,2216.9,2216.7,2.20527]
[1625329002189,1.0,2216.8,2216.7,2.20527]
[1625329002689,2.1,2216.8,2216.7,2.20527]
[1625329002839,3.40521641,2216.8,2216.7,2.20527]
[1625329005093,3.92730874,2216.8,2216.7,2.20527]
[1625329006145,3.40530456,2216.8,2216.7,2.20527]
[1625329007511,2.1,2216.8,2216.7,2.20527]
[1625329009974,3.92710004,2216.8,2216.7,2.20527]
[1625329010325,2.1,2216.8,2216.7,2.20527]
[1625329010875,3.92776183,2216.8,2216.7,2.20527]
[1625329011275,3.40601349,2216.8,2216.7,2.20527]
[1625329011727,3.92843365,2216.8,2216.7,2.20527]
[1625329012227,2.1,2216.8,2216.7,2.20527]
[1625329013081,3.92824541,2216.8,2216.7,2.20527]
[1625329014134,3.40589916,2216.8,2216.7,4.95667]
[1625329014236,2.30589916,2216.8,2216.7,4.95667]
[1625329014336,1.30589916,2216.8,2216.7,4.95667]
[1625329014686,1.0,2216.8,2216.7,4.95667]
[1625329015036,1.30629743,2216.9,2216.7,4.95667]
[1625329015136,1.30640938,2217.0,2216.7,4.95667]
[1625329015238,3.51167938,2217.0,2216.7,4.95667]
[1625329015450,2.20527,2217.0,2216.7,4.95667]
[1625329017192,2.20527,2217.0,2216.9,2.20527]
[1625329020652,3.20527,2217.0,2216.9,2.20527]
[1625329020904,2.20527,2217.0,2216.9,2.20527]
[1625329022070,3.20527,2217.0,2216.9,2.20527]
[1625329022775,4.51049515,2217.0,2216.9,2.20527]
[1625329023325,5.61049515,2217.0,2216.9,2.20527]
[1625329025836,5.61049515,2217.0,2216.7,2.20527]
[1625329025938,4.30527,2217.0,2216.7,2.20527]
[1625329026340,1.30504298,2216.9,2216.7,2.20527]
[1625329026438,2.1,2216.8,2216.7,2.20527]
[1625329027393,4.30527,2216.8,2216.7,2.20527]
[1625329029046,4.30527,2216.8,2216.7,2.15527]
[1625329030052,3.20527,2216.8,2216.7,2.15527]
[1625329031604,4.51033638,2216.8,2216.7,2.15527]
[1625329032505,3.20527,2216.8,2216.7,2.15527]
[1625329032903,3.20527,2216.8,2216.4,2.20527]
[1625329033105,4.5101384,2216.8,2216.4,2.20527]
[1625329033355,2.20527,2216.5,2216.4,2.20527]
[1625329034517,3.20527,2216.5,2216.4,2.20527]
[1625329035524,3.20527,2216.5,2216.2,2.20527]
[1625329036429,2.20527,2216.5,2216.2,2.20527]
[1625329037380,2.20527,2216.5,2216.3,2.20527]
[1625329044046,2.20527,2216.8,2216.3,2.20527]
[1625329045397,2.20527,2216.8,2216.7,2.20527]
[1625329047511,2.40792933,2217.1,2216.7,2.20527]
[1625329047612,1.30792933,2217.1,2216.7,2.20527]
[1625329048315,3.51357331,2217.2,2216.7,2.20527]
[1625329048767,2.20527,2217.2,2216.7,2.20527]
[1625329048916,3.20527,2217.2,2216.7,2.20527]
[1625329049016,2.20527,2217.2,2216.7,2.20527]
[1625329049222,3.51375506,2217.2,2216.7,2.20527]
[1625329049378,3.51375506,2217.2,2217.1,2.20527]
[1625329049981,2.20527,2217.2,2217.1,2.20527]
[1625329052690,3.20527,2217.2,2217.1,2.20527]
[1625329053294,4.51370211,2217.2,2217.1,2.20527]
[1625329053693,3.20527,2217.2,2217.1,2.20527]
[1625329054194,2.20527,2217.2,2217.1,2.20527]
[1625329057754,3.51242285,2217.2,2217.1,2.20527]
[1625329057955,2.20527,2217.2,2217.1,5.94167]
[1625329058856,1.30716524,2217.3,2217.1,5.94167]
[1625329059509,1.30716524,2217.3,2217.2,2.20527]
[1625329060514,2.30716524,2217.3,2217.2,2.20527]
[1625329061120,1.30716524,2217.3,2217.2,2.20527]
[1625329061322,1.83063266,2217.3,2217.2,2.20527]
[1625329061635,1.30808961,2217.3,2217.2,2.20527]
[1625329062592,2.93132545,2217.4,2217.2,2.20527]
[1625329062593,1.1,2217.4,2217.2,2.20527]
[1625329064143,1.30879541,2217.5,2217.2,2.20527]
[1625329064945,3.51516857,2217.7,2217.2,2.20527]
[1625329065496,3.51516857,2217.7,2217.6,2.20527]
[1625329066101,4.03915828,2217.7,2217.6,2.20527]
[1625329067103,2.20527,2217.7,2217.6,2.20527]
[1625329067505,4.03902897,2217.7,2217.6,2.20527]
[1625329068208,5.34877389,2217.7,2217.6,2.20527]
[1625329068660,6.34877389,2217.7,2217.6,2.20527]
[1625329068759,5.03902897,2217.7,2217.6,2.20527]
[1625329069113,5.82362749,2217.7,2217.6,2.20527]
[1625329069461,3.20527,2217.7,2217.6,2.20527]
[1625329070521,2.20527,2217.7,2217.6,2.20527]
[1625329070824,3.20527,2217.7,2217.6,2.20527]
[1625329070927,5.82432454,2217.7,2217.6,2.20527]
[1625329071175,3.20527,2217.7,2217.6,2.20527]
[1625329071373,2.20527,2217.7,2217.6,2.20527]
[1625329071472,2.20527,2217.7,2217.6,5.52707]
[1625329071573,3.4047709,2217.9,2217.6,5.52707]
[1625329071774,1.0,2217.8,2217.6,5.52707]
[1625329072124,2.61956266,2217.7,2217.6,5.52707]
[1625329072222,3.61956266,2217.7,2217.6,5.52707]
[1625329072573,2.61956266,2217.7,2217.6,5.52707]
[1625329072986,3.61956266,2217.7,2217.6,5.52707]
[1625329073535,5.82483266,2217.7,2217.6,5.52707]
[1625329073790,6.60806726,2217.7,2217.6,5.52707]
[1625329074189,7.70806726,2217.7,2217.6,5.52707]
[1625329074290,4.30527,2217.7,2217.6,5.52707]
[1625329076651,7.70707507,2217.7,2217.6,5.52707]
[1625329077848,4.30527,2217.7,2217.6,5.52707]
[1625329079854,8.49199071,2217.7,2217.6,5.52707]
[1625329082609,4.30527,2217.7,2217.6,5.52707]
[1625329083107,4.30527,2217.7,2217.6,5.47707]
[1625329084112,8.49041242,2217.7,2217.6,5.47707]
[1625329086524,4.30527,2217.7,2217.6,5.47707]
[1625329089138,3.30527,2217.7,2217.6,5.47707]
[1625329090040,1.1,2217.7,2217.6,5.47707]
[1625329090750,2.93050474,2217.7,2217.6,5.47707]
[1625329091908,2.40790705,2217.7,2217.6,5.47707]
[1625329092203,2.93096282,2217.7,2217.6,5.47707]
[1625329092654,2.40771233,2217.7,2217.6,5.47707]
[1625329094106,2.93041539,2217.7,2217.6,5.47707]
[1625329094206,1.83041539,2217.7,2217.6,5.47707]
[1625329094459,1.30756042,2217.7,2217.6,5.47707]
[1625329094705,1.83025883,2217.7,2217.6,5.47707]
[1625329096110,2.83030095,2217.8,2217.6,5.47707]
[1625329096462,1.83015914,2217.7,2217.6,5.47707]
[1625329096559,2.83015914,2217.7,2217.6,5.47707]
[1625329096660,6.58105914,2217.7,2217.6,2.15527]
[1625329096909,4.7509,2217.7,2217.6,2.15527]
[1625329097663,6.95617,2217.7,2217.6,2.15527]
[1625329098561,10.35288814,2217.7,2217.6,2.15527]
[1625329100230,9.25288814,2217.7,2217.6,2.15527]
[1625329101283,10.35288814,2217.7,2217.6,2.15527]
[1625329105007,9.25288814,2217.7,2217.6,2.15527]
[1625329105406,5.85617,2217.7,2217.6,2.15527]
[1625329109389,4.85617,2217.7,2217.6,2.15527]
[1625329109480,2.20527,2217.7,2217.6,2.15527]
[1625329109581,4.81899462,2217.7,2217.6,2.15527]
[1625329110334,5.3429393,2217.7,2217.6,2.15527]
[1625329111135,2.20527,2217.7,2217.6,2.15527]
[1625329111335,3.30527,2217.7,2217.6,2.15527]
[1625329111484,5.92118189,2217.7,2217.6,2.15527]
[1625329111643,6.92118189,2217.7,2217.6,2.15527]
[1625329112184,5.92118189,2217.7,2217.6,2.15527]
[1625329113388,6.92118189,2217.7,2217.6,2.15527]
[1625329115045,4.30527,2217.7,2217.6,2.15527]
[1625329116154,4.30527,2217.7,2217.6,2.01387]
[1625329118008,7.70849658,2217.7,2217.6,2.01387]
[1625329118812,4.30527,2217.7,2217.6,2.01387]
[1625329119112,7.61357,2217.7,2217.2,2.20527]
[1625329119312,11.01825036,2217.7,2217.2,2.20527]
[1625329119662,3.403224,2217.6,2217.2,2.20527]
[1625329119762,2.20527,2217.3,2216.8,2.20527]
[1625329119861,4.366,2217.2,2216.8,2.20527]
[1625329120162,7.50767387,2217.2,2216.8,2.20527]
[1625329120462,6.50767387,2217.2,2216.8,2.20527]
[1625329120763,7.50767387,2217.2,2216.8,2.20527]
[1625329121764,6.50767387,2217.2,2217.1,2.20527]
[1625329122016,7.50767387,2217.2,2217.1,2.20527]
[1625329122414,6.50767387,2217.2,2217.1,2.20527]
[1625329123515,7.50767387,2217.2,2217.1,2.20527]
[1625329123866,7.50767387,2217.2,2216.8,2.20527]
[1625329125578,6.50767387,2217.2,2216.8,2.20527]
[1625329125780,6.50767387,2217.2,2217.1,2.20527]
[1625329125880,7.50767387,2217.2,2217.1,2.20527]
[1625329126732,10.12853162,2217.2,2217.1,2.20527]
[1625329127488,7.50767387,2217.2,2217.1,2.20527]
[1625329127586,6.50767387,2217.2,2217.1,5.06927]
[1625329128240,3.366,2217.2,2217.1,5.06927]
[1625329128387,7.97188016,2217.3,2217.1,5.06927]
[1625329128688,7.97188016,2217.3,2217.1,2.864]
[1625329129793,7.97188016,2217.3,2217.2,2.20527]
[1625329129942,2.20527,2217.3,2217.2,2.20527]
[1625329130795,2.20527,2217.3,2217.2,4.60497]
[1625329132496,2.20527,2217.3,2217.2,2.3997]
[1625329133001,2.20527,2217.3,2216.8,2.20527]
[1625329133099,3.20527,2217.3,2216.8,2.20527]
[1625329133657,5.76727593,2217.2,2216.8,2.20527]
[1625329133907,2.20527,2217.0,2216.8,4.41054]
[1625329134260,5.76727593,2217.2,2216.8,4.41054]
[1625329135210,7.7126997,2217.3,2216.8,4.41054]
[1625329135211,5.76584797,2217.1,2216.8,4.41054]
[1625329137822,2.20527,2216.9,2216.8,4.41054]
[1625329140184,5.76584797,2217.1,2216.8,4.41054]
[1625329142589,5.76584797,2217.1,2216.9,3.63696196]
[1625329142791,5.51054,2217.3,2216.9,3.63696196]
[1625329142940,5.51054,2217.3,2217.0,0.13365755]
[1625329143295,4.41054,2217.3,2217.0,0.13365755]
[1625329143891,2.20527,2217.3,2217.2,2.20527]
[1625329144442,2.20527,2217.3,2217.2,2.33891607]
[1625329145243,5.77463243,2217.6,2217.2,2.33891607]
[1625329145543,5.77463243,2217.6,2217.2,2.20527]
[1625329145897,5.77463243,2217.6,2217.5,2.20527]
[1625329145998,5.77463243,2217.6,2217.5,5.81437]
[1625329146102,7.99114313,2217.7,2217.5,5.81437]
[1625329147964,7.99114313,2217.7,2217.6,2.20527]
[1625329149270,7.99114313,2217.7,2217.6,4.92307]
[1625329154141,5.78587313,2217.7,2217.6,4.92307]
[1625329154641,3.41453435,2217.8,2217.6,4.92307]
[1625329154642,5.81683997,2217.8,2217.6,4.92307]
[1625329155142,3.43722362,2217.9,2217.6,4.92307]
[1625329155143,5.81836476,2217.9,2217.6,4.92307]
[1625329155491,5.81674346,2218.0,2217.6,4.92307]
[1625329155943,5.81660332,2217.9,2217.6,4.92307]
[1625329156052,5.81660332,2217.9,2217.8,2.20527]
[1625329156542,3.32e-06,2217.9,2217.8,2.20527]
[1625329156694,4.231538,2218.3,2217.8,2.20527]
[1625329156695,5.81875829,2218.2,2217.8,2.20527]
[1625329157044,3.43884505,2218.4,2217.8,2.20527]
[1625329157849,3.43481468,2218.5,2217.8,2.20527]
[1625329158050,3.43481468,2218.5,2218.4,4.41054]
[1625329159399,2.20527,2218.9,2218.4,4.41054]
[1625329159400,3.43682403,2218.6,2218.4,4.41054]
[1625329159599,5.22993727,2218.8,2218.4,4.41054]
[1625329159600,3.43613256,2218.5,2218.4,4.41054]
[1625329162102,3.43257671,2218.6,2218.4,4.41054]
[1625329162301,1.0,2218.5,2218.4,4.41054]
[1625329162503,3.4324317,2218.5,2218.4,4.41054]
[1625329162956,2.20527,2218.9,2218.4,4.41054]
[1625329162957,3.43130657,2218.6,2218.4,4.41054]
[1625329166875,3.42265806,2218.7,2218.4,4.41054]
[1625329167587,4.42265806,2218.7,2218.4,4.41054]
[1625329168241,4.42265806,2218.7,2217.3,14.1941]
[1625329168339,7.12305806,2218.7,2217.3,14.1941]
[1625329168444,3.42215348,2218.5,2217.3,14.1941]
[1625329168539,1.0,2218.4,2217.3,14.1941]
[1625329168890,4.42118298,2218.4,2217.3,14.1941]
[1625329169089,5.52118298,2218.4,2217.3,14.1941]
[1625329169391,3.4209841,2218.3,2217.3,14.1941]
[1625329169492,1.0,2218.2,2217.3,14.1941]
[1625329170142,3.20527,2218.2,2218.1,2.20527]
[1625329172249,5.41054,2218.2,2218.1,2.20527]
[1625329172548,4.41054,2218.2,2218.1,2.20527]
[1625329173299,5.41054,2218.2,2218.1,2.20527]
[1625329173600,4.41054,2218.2,2218.1,2.20527]
[1625329174053,1.0,2218.4,2218.1,2.20527]
[1625329174159,1.0,2218.4,2218.2,2.20527]
[1625329175121,3.42216671,2218.5,2218.2,2.20527]
[1625329175222,1.0,2218.4,2218.2,2.20527]
[1625329180189,2.20527,2218.3,2218.2,2.20527]
[1625329180286,3.20527,2218.3,2218.2,2.20527]
[1625329184792,4.30527,2218.3,2218.2,2.20527]
[1625329187713,7.11457,2218.3,2218.2,2.20527]
[1625329187811,7.11457,2218.3,2217.3,14.1941]
[1625329188324,5.71267,2217.7,2217.6,2.20527]
[1625329188420,6.71267,2217.7,2217.6,2.20527]
[1625329190226,8.91794,2217.7,2217.6,2.20527]
[1625329190827,10.01794,2217.7,2217.6,2.20527]
[1625329193885,10.01794,2217.7,2216.4,14.5304]
[1625329194334,7.81267,2217.7,2217.4,2.20527]
[1625329196294,2.20527,2217.6,2217.4,2.20527]
[1625329196446,1.0,2217.5,2217.4,2.20527]
[1625329196947,3.9653,2217.5,2217.4,2.20527]
[1625329200199,2.9653,2217.5,2217.4,2.20527]
[1625329202611,1.0,2217.6,2217.4,2.20527]
[1625329204573,3.20527,2217.7,2217.4,2.20527]
[1625329204779,2.20527,2217.7,2217.4,2.20527]
[1625329205275,14.1535,2218.2,2217.4,2.20527]
[1625329205576,1.1,2218.3,2217.4,2.20527]
[1625329205679,1.0,2218.2,2217.4,2.20527]
[1625329206332,1.0,2218.2,2218.1,4.41054]
[1625329214215,2.20527,2218.3,2218.1,4.41054]
[1625329215072,3.41431142,2218.8,2218.1,4.41054]
[1625329215622,3.41463077,2218.9,2218.1,4.41054]
[1625329215724,4.41463077,2218.9,2218.1,4.41054]
[1625329216442,4.41463077,2218.9,2218.8,4.41054]
[1625329216542,4.41463077,2218.9,2218.8,7.18824]
[1625329218908,1.0,2218.9,2218.8,7.18824]
[1625329223940,3.41073254,2219.0,2218.8,7.18824]
[1625329224242,1.0,2219.1,2218.8,7.18824]
[1625329224542,4.41157408,2219.1,2218.8,7.18824]
[1625329225445,3.41157408,2219.1,2218.8,7.18824]
[1625329225645,5.19828232,2219.4,2218.8,7.18824]
[1625329225646,3.41165085,2219.2,2218.8,7.18824]
[1625329226494,3.41165085,2219.2,2219.1,2.20527]
[1625329227197,1.0,2219.4,2219.1,2.20527]
[1625329227396,3.413692,2219.5,2219.1,2.20527]
[1625329228499,3.413692,2219.5,2219.4,2.20527]
[1625329228600,3.413692,2219.5,2219.4,5.72317]
[1625329231066,4.413692,2219.5,2219.4,5.72317]
[1625329231814,3.413692,2219.5,2219.4,5.72317]
[1625329232016,3.40974683,2219.6,2219.4,5.72317]
[1625329232117,1.0,2219.5,2219.4,5.72317]
[1625329234284,3.4058959,2219.7,2219.4,5.72317]
[1625329234586,3.4058959,2219.7,2219.6,1.20527]
[1625329235188,3.4058959,2219.7,2219.6,3.79207]
[1625329235436,5.61055774,2219.8,2219.6,3.79207]
[1625329236485,5.61055774,2219.8,2219.6,2.5868]
[1625329236588,7.81582774,2219.8,2219.6,2.5868]
[1625329236940,3.40474224,2219.7,2219.6,2.5868]
[1625329237038,3.40474224,2219.7,2219.4,3.20527]
[1625329237741,7.8144506,2219.8,2219.4,3.20527]
[1625329238544,2.20527,2219.5,2219.4,3.20527]
[1625329238892,2.20527,2219.5,2219.4,2.20527]
[1625329239292,2.20527,2219.5,2218.4,14.7583]
[1625329239842,3.30527,2219.5,2218.4,14.7583]
[1625329239942,3.30527,2219.5,2218.5,1.0]
[1625329240545,3.30527,2219.5,2219.1,2.20527]
[1625329240645,3.30527,2219.5,2219.1,3.20527]
[1625329240747,2.20527,2219.5,2219.1,3.20527]
[1625329242610,2.20527,2219.5,2219.4,2.20527]
[1625329245309,2.20527,2219.5,2219.4,3.20527]
[1625329245662,2.20527,2219.5,2219.4,2.20527]
[1625329247465,2.20527,2219.5,2219.1,2.20527]
[1625329248315,1.1,2219.4,2219.1,2.20527]
[1625329248516,1.1,2219.4,2218.8,1.0]
[1625329248620,2.20527,2218.9,2218.8,1.0]
[1625329250672,4.41054,2218.9,2218.8,1.0]
[1625329252630,4.41054,2218.9,2218.8,3.20527]
[1625329257651,4.41054,2218.9,2218.8,5.98957]
[1625329265446,4.41054,2218.9,2218.8,2.7843]
[1625329265536,4.41054,2218.9,2217.9,1.0]
[1625329266204,4.41054,2218.9,2218.0,16.496032]
[1625329266306,4.41054,2218.9,2218.8,1.0]
[1625329266459,4.41054,2218.9,2218.0,19.561132]
[1625329266554,4.41054,2218.9,2218.1,1.0]
[1625329266756,4.41054,2218.9,2218.8,2.20527]
[1625329266857,4.41054,2218.9,2218.8,4.50627]
[1625329268713,4.41054,2218.9,2218.8,5.50627]
[1625329270160,2.20527,2218.9,2218.8,5.50627]
[1625329281830,2.20527,2219.4,2218.8,5.50627]
[1625329282843,2.20527,2219.4,2219.3,2.20527]
[1625329283149,2.20527,2219.4,2219.3,3.20527]
[1625329286855,2.20527,2219.4,2219.3,5.41054]
[1625329286955,2.20527,2219.4,2219.3,8.68764]
[1625329292434,2.20527,2219.4,2219.3,4.2771]
[1625329292535,5.23697,2219.4,2218.2,14.6603]
[1625329292634,5.23697,2219.4,2218.3,1.0]
[1625329292932,5.23697,2219.4,2218.8,2.20527]
[1625329292933,2.20527,2218.9,2218.8,2.20527]
[1625329293031,5.73667,2218.9,2218.8,2.20527]
[1625329294938,7.94194,2218.9,2218.8,2.20527]
[1625329296893,7.94194,2218.9,2218.8,3.20527]
[1625329297094,7.94194,2218.9,2218.8,2.20527]
[1625329298195,7.94194,2218.9,2218.8,3.20527]
[1625329298744,7.94194,2218.9,2218.8,2.20527]
[1625329299297,7.94194,2218.9,2218.8,3.20527]
[1625329300407,7.94194,2218.9,2218.8,2.20527]
[1625329301263,7.94194,2218.9,2218.8,3.20527]
[1625329303170,5.73667,2218.9,2218.8,3.20527]
[1625329304371,5.73667,2218.9,2218.8,1.0]
[1625329304533,5.73667,2218.9,2218.6,2.20527]
[1625329304621,5.73667,2218.9,2218.6,3.20527]
[1625329304973,2.20527,2218.8,2218.6,3.20527]
[1625329305727,2.20527,2218.8,2218.6,2.20527]
[1625329310044,2.20527,2218.8,2218.6,3.20527]
[1625329310958,2.20527,2218.8,2218.6,2.20527]
[1625329311161,4.50797,2218.8,2218.6,2.20527]
[1625329311366,7.13806106,2218.8,2218.6,2.20527]
[1625329313571,10.55703005,2218.8,2218.6,2.20527]
[1625329315177,10.55703005,2218.8,2218.2,15.6603]
[1625329315477,10.55703005,2218.8,2218.2,1.0]
[1625329315626,10.55703005,2218.8,2218.3,0.13358556]
[1625329317126,10.55703005,2218.8,2218.5,2.20527]
[1625329319078,2.20527,2218.6,2218.5,2.20527]
[1625329326312,2.20527,2218.6,2218.5,3.20527]
[1625329334234,2.20527,2218.6,2218.5,2.20527]
[1625329344116,2.20527,2218.6,2218.5,3.20527]
[1625329344475,2.20527,2218.6,2218.5,3.33884897]
[1625329346933,2.20527,2218.8,2218.5,3.33884897]
[1625329347281,2.20527,2218.8,2218.7,2.20527]
[1625329347634,2.20527,2218.8,2218.7,3.20527]
[1625329351343,6.67019616,2218.8,2218.7,3.20527]
[1625329357669,6.67019616,2218.8,2218.7,2.20527]
[1625329363093,6.67019616,2218.8,2218.7,3.20527]
[1625329363946,2.20527,2218.8,2218.7,3.20527]
[1625329366153,2.20527,2218.8,2218.7,2.20527]
[1625329366602,2.20527,2218.8,2218.4,1.0]
[1625329366803,6.68441781,2218.8,2218.4,1.0]
[1625329367252,2.20527,2218.5,2218.4,1.0]
[1625329369308,2.20527,2218.5,2218.4,3.20527]
[1625329371279,2.20527,2218.5,2218.4,2.20527]
[1625329371380,5.13597,2218.5,2218.4,2.20527]
[1625329371681,9.60550876,2218.5,2218.4,2.20527]
[1625329372132,8.55315776,2218.5,2218.4,2.20527]
[1625329372581,9.65315776,2218.5,2218.4,2.20527]
[1625329373684,8.55315776,2218.5,2218.4,2.20527]
[1625329374084,9.65315776,2218.5,2218.4,2.20527]
[1625329374635,6.23597,2218.5,2218.4,2.20527]
[1625329375689,5.13597,2218.5,2218.4,2.20527]
[1625329376242,5.13597,2218.5,2217.4,1.0]
[1625329376695,1.1,2218.4,2217.4,1.0]
[1625329376794,4.46559835,2218.3,2217.5,0.80165473]
[1625329376892,5.56559835,2218.3,2217.5,0.80165473]
[1625329377242,4.46572869,2218.2,2217.5,0.80165473]
[1625329377343,2.20527,2217.8,2217.7,2.20527]
[1625329377843,2.20527,2217.8,2217.7,2.33888245]
[1625329379345,4.41054,2217.8,2217.7,2.33888245]
[1625329380451,4.41054,2217.8,2217.7,2.20527]
[1625329381851,4.41054,2217.8,2217.7,2.33889095]
[1625329382151,4.41054,2217.8,2217.7,0.13362095]
[1625329382302,4.41054,2217.8,2217.5,1.0]
[1625329382552,4.41054,2217.8,2217.4,1.0]
[1625329382651,4.41054,2217.8,2217.6,0.13362237]
[1625329383004,4.41054,2217.8,2217.5,0.13362234]
[1625329389382,4.41054,2217.8,2217.6,2.20527]
[1625329389531,4.41054,2217.8,2217.6,3.20527]
[1625329391236,4.41054,2217.8,2217.0,1.86496253]
[1625329391387,4.41054,2217.1,2217.0,2.86496253]
[1625329391488,4.41054,2217.1,2216.9,1.8652272]
[1625329391636,6.82354,2217.1,2216.9,1.8652272]
[1625329391937,6.82354,2217.1,2216.2,4.07083314]
[1625329392387,6.82354,2217.1,2216.3,0.13366603]
[1625329393142,6.82354,2217.1,2216.2,0.13367444]
[1625329393491,4.41054,2216.3,2216.2,0.13367444]
[1625329393591,7.81334,2216.3,2216.2,0.13367444]
[1625329393892,7.81334,2216.3,2216.0,2.20527]
[1625329396851,7.81334,2216.3,2216.0,3.20527]
[1625329397405,7.81334,2216.3,2216.0,2.20527]
[1625329397654,7.81334,2216.3,2216.0,3.20527]
[1625329403330,7.81334,2216.3,2216.0,6.21217]
[1625329404030,4.41054,2216.3,2216.0,6.21217]
[1625329407192,1.303395,2217.5,2216.0,6.21217]
[1625329407441,1.30458257,2217.9,2216.0,6.21217]
[1625329407541,2.20527,2217.7,2217.4,2.20527]
[1625329407640,2.20527,2217.7,2217.4,6.39127]
[1625329409495,2.20527,2217.6,2217.4,6.39127]
[1625329410246,2.20527,2217.6,2217.4,5.39127]
[1625329410848,2.20527,2217.6,2217.4,3.186]
[1625329412002,2.20527,2217.6,2217.2,2.20527]
[1625329412100,3.30527,2217.6,2217.2,2.20527]
[1625329412200,2.20527,2217.6,2217.2,2.20527]
[1625329412452,2.20527,2217.6,2216.9,2.20527]
[1625329412559,5.86327,2217.6,2216.7,1.0]
[1625329412757,5.86327,2217.6,2215.4,19.1549]
[1625329413061,1.1,2217.5,2215.4,19.1549]
[1625329413206,1.1,2217.5,2216.1,1.0]
[1625329413607,2.20527,2217.0,2216.7,2.20527]
[1625329415559,4.41054,2217.0,2216.7,2.20527]
[1625329416466,4.41054,2217.0,2216.5,1.0]
[1625329417118,4.41054,2217.0,2216.4,2.20527]
[1625329417666,4.41054,2216.5,2216.4,2.20527]
[1625329418871,2.20527,2216.5,2216.4,2.20527]
[1625329420445,2.20527,2216.5,2216.2,1.0]
[1625329423604,2.20527,2216.5,2216.4,2.20527]
[1625329423706,2.20527,2216.5,2216.4,5.13617]
[1625329423904,2.20527,2216.5,2216.4,6.13617]
[1625329424255,2.20527,2216.7,2216.4,6.13617]
[1625329425655,2.20527,2216.7,2216.5,2.20527]
[1625329425757,2.20527,2216.7,2216.5,3.20527]
[1625329427309,2.20527,2216.7,2216.5,2.20527]
[1625329427964,2.20527,2216.7,2216.5,3.20527]
[1625329428114,2.20527,2216.7,2216.5,2.20527]
[1625329429220,2.20527,2216.7,2216.4,1.0]
[1625329431642,2.20527,2216.5,2216.4,1.0]